fUSD/lending_fUSD_20240615
["ID","MTS","AMOUNT","RATE_DAILY","PERIOD"]
[329557115,1718434276476,-500.0,0.00022191,3]
[329557116,1718434276492,-500.0,0.00022191,3]
[329557117,1718434276669,-500.0,0.00022191,3]
[329557118,1718434276683,-548.15,0.00022191,3]
[329557119,1718434276715,-308.84952652,0.00022191,3]
[329557120,1718434276729,-500.0,0.00022191,3]
[329557121,1718434276765,-500.0,0.00022191,3]
[329557122,1718434276789,-500.0,0.00022191,3]
[329557123,1718434276801,-1061.36,0.00022191,3]
[329557124,1718434276814,-365.95105933,0.00022191,3]
[329557125,1718434276850,-134.04894067,0.00022191,3]
[329557126,1718434276862,-500.0,0.00022191,3]
[329557127,1718434276874,-500.0,0.00022191,3]
[329557128,1718434276886,-500.0,0.00022191,3]
[329557129,1718434276899,-915.87,0.00022191,3]
[329557130,1718434276911,-500.0,0.00022191,3]
[329557131,1718434276926,-683.15,0.00022191,3]
[329557132,1718434276936,-500.0,0.00022191,3]
[329557133,1718434276960,-500.0,0.00022191,3]
[329557134,1718434276972,-500.0,0.00022191,3]
[329557135,1718434276988,-448.03953772,0.00022191,3]
[329557136,1718434277012,-500.0,0.00022191,3]
[329557137,1718434277072,-500.0,0.00022191,3]
[329557138,1718434277085,-500.0,0.00022191,3]
[329557139,1718434277098,-500.0,0.00022191,3]
[329557140,1718434277145,-500.0,0.00022191,3]
[329557141,1718434277200,-500.0,0.00022191,3]
[329557142,1718434277212,-500.0,0.00022191,3]
[329557143,1718434277224,-500.0,0.00022191,3]
[329557144,1718434277245,-500.0,0.00022191,3]
[329557145,1718434277270,-500.0,0.00022191,3]
[329557146,1718434277290,-500.0,0.00022191,3]
[329557147,1718434277307,-500.0,0.00022191,3]
[329557148,1718434277320,-500.0,0.00022191,3]
[329557149,1718434277335,-500.0,0.00022191,3]
[329557150,1718434277350,-500.0,0.00022191,3]
[329557151,1718434277367,-719.64,0.00022191,3]
[329557152,1718434277383,-546.91,0.00022191,3]
[329557153,1718434277400,-500.0,0.00022191,3]
[329557154,1718434277414,-500.0,0.00022191,3]
[329557155,1718434277457,-500.0,0.00022191,3]
[329557156,1718434277468,-500.0,0.00022191,3]
[329557157,1718434277479,-500.0,0.00022191,3]
[329557158,1718434277500,-500.0,0.00022191,3]
[329557159,1718434277513,-500.0,0.00022191,3]
[329557160,1718434277551,-500.0,0.00022191,3]
[329557161,1718434277580,-500.0,0.00022191,3]
[329557162,1718434277590,-500.0,0.00022191,3]
[329557163,1718434277601,-500.0,0.00022191,3]
[329557164,1718434277612,-500.0,0.00022191,3]
[329557165,1718434277623,-500.0,0.00022191,3]
[329557166,1718434277634,-509.36,0.00022191,3]
[329557167,1718434277647,-500.0,0.00022191,3]
[329557168,1718434277662,-752.52,0.00022191,3]
[329557169,1718434277674,-2859.88,0.00022191,3]
[329557170,1718434277694,-500.0,0.00022191,3]
[329557171,1718434277706,-500.0,0.00022191,3]
[329557172,1718434277717,-500.0,0.00022191,3]
[329557173,1718434277728,-500.0,0.00022191,3]
[329557174,1718434277743,-500.0,0.00022191,3]
[329557175,1718434277776,-500.0,0.00022191,3]
[329557176,1718434277789,-500.0,0.00022191,3]
[329557177,1718434277808,-798.19,0.00022191,3]
[329557178,1718434277832,-500.0,0.00022191,3]
[329557179,1718434277856,-894.38,0.00022191,3]
[329557180,1718434277882,-500.0,0.00022191,3]
[329557181,1718434277908,-500.0,0.00022191,3]
[329557182,1718434277923,-553.85,0.00022191,3]
[329557183,1718434277935,-513.07530829,0.00022191,3]
[329557184,1718434277957,-500.0,0.00022191,3]
[329557185,1718434277969,-500.0,0.00022191,3]
[329557186,1718434277988,-614.17,0.00022191,3]
[329557187,1718434277999,-756.46,0.00022191,3]
[329557188,1718434278031,-500.0,0.00022191,3]
[329557189,1718434278045,-500.0,0.00022191,3]
[329557190,1718434278056,-500.0,0.00022191,3]
[329557191,1718434278114,-587.71,0.00022191,3]
[329557192,1718434278141,-649.22,0.00022191,3]
[329557193,1718434278161,-500.0,0.00022191,3]
[329557194,1718434278172,-500.0,0.00022191,3]
[329557195,1718434278189,-482.92789578,0.00022191,3]
[329557196,1718434278200,-500.0,0.00022191,3]
[329557197,1718434278210,-500.0,0.00022191,3]
[329557198,1718434278230,-151.0,0.00022191,7]
[329557199,1718434278241,-500.0,0.00022191,3]
[329557200,1718434278257,-500.0,0.00022191,3]
[329557201,1718434278274,-151.0,0.00022191,7]
[329557202,1718434278287,-151.0,0.00022191,7]
[329557203,1718434278309,-151.0,0.00022191,7]
[329557204,1718434278320,-500.0,0.00022191,3]
[329557205,1718434278336,-500.0,0.00022191,3]
[329557206,1718434278348,-500.0,0.00022191,3]
[329557207,1718434278371,-760.02,0.00022191,3]
[329557208,1718434278383,-2041.04,0.00022191,3]
[329557209,1718434278394,-500.0,0.00022191,3]
[329557210,1718434278407,-500.0,0.00022191,3]
[329557211,1718434278418,-500.0,0.00022191,3]
[329557212,1718434278442,-500.0,0.00022191,3]
[329557213,1718434278469,-500.0,0.00022191,3]
[329557214,1718434278480,-500.0,0.00022191,3]
[329557215,1718434278493,-657.64,0.00022191,3]
[329557216,1718434278523,-500.0,0.00022191,3]
[329557217,1718434278545,-487.44,0.00022191,3]
[329557218,1718434278564,-1234.43,0.00022191,3]
[329557219,1718434278581,-500.0,0.00022191,3]
[329557220,1718434278600,-500.0,0.00022191,3]
[329557221,1718434278611,-623.9,0.00022191,3]
[329557222,1718434278624,-500.0,0.00022191,3]
[329557223,1718434278636,-500.0,0.00022191,3]
[329557224,1718434278659,-508.98,0.00022191,3]
[329557225,1718434278677,-500.0,0.00022191,3]
[329557226,1718434278691,-602.15,0.00022191,3]
[329557227,1718434278711,-397.142723,0.00022191,7]
[329557228,1718434278722,-397.142723,0.00022191,7]
[329557229,1718434278736,-397.142723,0.00022191,7]
[329557230,1718434278760,-554.49698307,0.00022191,3]
[329557231,1718434278779,-397.142723,0.00022191,7]
[329557232,1718434278790,-500.0,0.00022191,3]
[329557233,1718434278813,-500.0,0.00022191,3]
[329557234,1718434278824,-500.0,0.00022191,3]
[329557235,1718434278862,-397.142723,0.00022191,7]
[329557236,1718434278893,-500.0,0.00022191,3]
[329557237,1718434278905,-397.142723,0.00022191,7]
[329557238,1718434278923,-397.142723,0.00022191,7]
[329557239,1718434278938,-397.142731,0.00022191,7]
[329557240,1718434278971,-500.0,0.00022191,3]
[329557241,1718434278987,-500.0,0.00022191,3]
[329557242,1718434279004,-512.68535474,0.00022191,3]
[329557243,1718434279054,-500.0,0.00022191,3]
[329557244,1718434279070,-500.0,0.00022191,3]
[329557245,1718434279082,-371.0882026,0.00022191,3]
[329557246,1718434279099,-500.0,0.00022191,3]
[329557247,1718434279114,-500.0,0.00022191,3]
[329557248,1718434279125,-678.56,0.00022191,3]
[329557249,1718434279149,-500.0,0.00022191,3]
[329557250,1718434279172,-500.0,0.00022191,3]
[329557251,1718434279189,-500.0,0.00022191,3]
[329557252,1718434279214,-500.0,0.00022191,3]
[329557253,1718434279235,-708.54,0.00022191,3]
[329557254,1718434279276,-209.10680369,0.00022191,3]
[329557255,1718434279287,-500.0,0.00022191,3]
[329557256,1718434279308,-1651.4,0.00022191,3]
[329557257,1718434279327,-500.0,0.00022191,3]
[329557258,1718434279338,-500.0,0.00022191,3]
[329557259,1718434279352,-1649.16,0.00022191,3]
[329557260,1718434279366,-500.0,0.00022191,3]
[329557261,1718434279381,-607.32,0.00022191,3]
[329557262,1718434279404,-360.77004009,0.00022191,3]
[329557263,1718434279436,-500.0,0.00022191,3]
[329557264,1718434279460,-959.94,0.00022191,3]
[329557265,1718434279470,-500.0,0.00022191,3]
[329557266,1718434279489,-500.0,0.00022191,3]
[329557267,1718434279505,-500.0,0.00022191,3]
[329557268,1718434279569,-511.43,0.00022191,3]
[329557269,1718434279601,-516.61,0.00022191,3]
[329557270,1718434279627,-517.46,0.00022191,3]
[329557271,1718434279649,-500.0,0.00022191,3]
[329557272,1718434279666,-554.91,0.00022191,3]
[329557273,1718434279732,-500.0,0.00022191,3]
[329557274,1718434279764,-500.0,0.00022191,3]
[329557275,1718434279796,-760.91,0.00022191,3]
[329557276,1718434279917,-500.0,0.00022191,3]
[329557277,1718434279929,-500.0,0.00022191,3]
[329557278,1718434279941,-500.0,0.00022191,3]
[329557279,1718434279955,-543.33,0.00022191,3]
[329557280,1718434279966,-500.0,0.00022191,3]
[329557281,1718434279985,-500.0,0.00022191,3]
[329557282,1718434279996,-173.1103944,0.00022191,3]
[329557283,1718434280016,-500.0,0.00022191,3]
[329557284,1718434280030,-435.2562844,0.00022191,3]
[329557285,1718434280041,-583.03,0.00022191,3]
[329557286,1718434280051,-669.17,0.00022191,3]
[329557287,1718434280072,-500.0,0.00022191,3]
[329557288,1718434280092,-500.0,0.00022191,3]
[329557289,1718434280108,-164.09370103,0.00022191,3]
[329557290,1718434280129,-500.0,0.00022191,3]
[329557291,1718434280149,-1697.37,0.00022191,3]
[329557292,1718434280181,-500.0,0.00022191,3]
[329557293,1718434280193,-530.93,0.00022191,3]
[329557294,1718434280205,-500.0,0.00022191,3]
[329557295,1718434280224,-615.9,0.00022191,3]
[329557296,1718434280256,-3296.82,0.00022191,3]
[329557297,1718434280277,-597.18,0.00022191,3]
[329557298,1718434280295,-916.36,0.00022191,3]
[329557299,1718434280306,-331.8178975,0.00022191,3]
[329557300,1718434280320,-500.0,0.00022191,3]
[329557301,1718434280348,-500.0,0.00022191,3]
[329557302,1718434280368,-1000.0,0.00022191,3]
[329557303,1718434280381,-500.0,0.00022191,3]
[329557304,1718434280395,-500.0,0.00022191,3]
[329557305,1718434280407,-500.0,0.00022191,3]
[329557306,1718434280420,-280.68,0.00022191,3]
[329557307,1718434280434,-500.0,0.00022191,3]
[329557308,1718434280461,-752.42,0.00022191,3]
[329557309,1718434280472,-500.0,0.00022191,3]
[329557310,1718434280498,-671.84,0.00022191,3]
[329557311,1718434280518,-500.0,0.00022191,3]
[329557312,1718434280529,-500.0,0.00022191,3]
[329557313,1718434280545,-500.0,0.00022191,3]
[329557314,1718434280558,-754.35,0.00022191,3]
[329557315,1718434280568,-500.0,0.00022191,3]
[329557316,1718434280589,-500.0,0.00022191,3]
[329557317,1718434280605,-500.0,0.00022191,3]
[329557318,1718434280616,-500.0,0.00022191,3]
[329557319,1718434280629,-500.0,0.00022191,3]
[329557320,1718434280645,-500.0,0.00022191,3]
[329557321,1718434280656,-410.86740367,0.00022191,3]
[329557322,1718434280668,-500.0,0.00022191,3]
[329557323,1718434280680,-500.0,0.00022191,3]
[329557324,1718434280691,-500.0,0.00022191,3]
[329557325,1718434280720,-500.0,0.00022191,3]
[329557326,1718434280732,-500.0,0.00022191,3]
[329557327,1718434280757,-1081.41,0.00022191,3]
[329557328,1718434280771,-500.0,0.00022191,3]
[329557329,1718434280783,-500.0,0.00022191,3]
[329557330,1718434280803,-500.0,0.00022191,3]
[329557331,1718434280824,-1094.58,0.00022191,3]
[329557332,1718434280837,-500.0,0.00022191,3]
[329557333,1718434280868,-500.0,0.00022191,3]
[329557334,1718434280882,-500.0,0.00022191,3]
[329557335,1718434280901,-500.0,0.00022191,3]
[329557336,1718434280940,-618.9,0.00022191,3]
[329557337,1718434280958,-598.73,0.00022191,3]
[329557338,1718434280969,-569.25,0.00022191,3]
[329557339,1718434281002,-500.0,0.00022191,3]
[329557340,1718434281014,-500.0,0.00022191,3]
[329557341,1718434281028,-500.0,0.00022191,3]
[329557342,1718434281046,-508.47394613,0.00022191,3]
[329557343,1718434281062,-949.2,0.00022191,3]
[329557344,1718434281074,-500.0,0.00022191,3]
[329557345,1718434281087,-411.43427139,0.00022191,3]
[329557346,1718434281098,-665.07,0.00022191,3]
[329557347,1718434281127,-500.0,0.00022191,3]
[329557348,1718434281140,-500.0,0.00022191,3]
[329557349,1718434281163,-500.0,0.00022191,3]
[329557350,1718434281183,-500.0,0.00022191,3]
[329557351,1718434281209,-500.0,0.00022191,3]
[329557352,1718434281230,-933.4,0.00022191,3]
[329557353,1718434281257,-767.79,0.00022191,3]
[329557354,1718434281281,-500.0,0.00022191,3]
[329557355,1718434281304,-542.53956606,0.00022191,3]
[329557356,1718434281320,-502.37,0.00022191,3]
[329557357,1718434281341,-500.0,0.00022191,3]
[329557358,1718434281378,-727.34,0.00022191,3]
[329557359,1718434281395,-500.0,0.00022191,3]
[329557360,1718434281412,-500.0,0.00022191,3]
[329557361,1718434281432,-500.0,0.00022191,3]
[329557362,1718434281453,-500.0,0.00022191,3]
[329557363,1718434281468,-151.0,0.00022191,7]
[329557364,1718434281484,-151.0,0.00022191,7]
[329557365,1718434281503,-181.865172,0.00022191,7]
[329557366,1718434281529,-151.0,0.00022191,7]
[329557367,1718434281570,-255.800597,0.00022191,7]
[329557368,1718434281596,-500.0,0.00022191,3]
[329557369,1718434281614,-1000.0,0.000222,2]
[329557370,1718434281631,-500.0,0.00022217,2]
[329557371,1718434281648,-975.04504316,0.00022265,2]
[329557372,1718434281665,-200.0,0.00022284,2]
[329557373,1718434281681,-500.0,0.00022284,2]
[329557374,1718434281699,-200.0,0.00022284,2]
[329557375,1718434281718,-212.0,0.0002231,2]
[329557376,1718434281735,-800.0,0.00022356,2]
[329557377,1718434281752,-800.0,0.00022356,2]
[329557378,1718434281768,-800.0,0.00022356,2]
[329557379,1718434281784,-800.0,0.00022356,2]
[329557380,1718434281805,-800.0,0.00022356,2]
[329557381,1718434281821,-174.60961132,0.00022365,2]
[329557382,1718434281838,-150.0,0.000224,3]
[329557383,1718434281856,-200.0,0.00022413,2]
[329557384,1718434281874,-352.91866752,0.00022464,3]
[329557385,1718434281891,-717.11,0.00022464,3]
[329557386,1718434281913,-717.11,0.00022464,3]
[329557387,1718434281931,-782.000784,0.00022464,7]
[329557388,1718434281948,-782.000789,0.00022464,7]
[329557389,1718434281970,-227.247291,0.00022464,7]
[329557390,1718434281986,-227.247295,0.00022464,7]
[329557391,1718434282002,-500.0,0.00022465,3]
[329557392,1718434282030,-500.0,0.00022465,3]
[329557393,1718434282048,-500.0,0.00022465,3]
[329557394,1718434282064,-500.0,0.00022465,3]
[329557395,1718434282080,-531.79,0.00022465,3]
[329557396,1718434282096,-500.0,0.00022465,3]
[329557397,1718434282112,-500.0,0.00022465,3]
[329557398,1718434282127,-385.26125736,0.00022465,3]
[329557399,1718434282150,-500.0,0.00022465,3]
[329557400,1718434282169,-500.0,0.00022465,3]
[329557401,1718434282185,-702.63,0.00022465,3]
[329557402,1718434282201,-835.95,0.00022465,3]
[329557403,1718434282217,-500.0,0.00022465,3]
[329557404,1718434282233,-500.0,0.00022465,3]
[329557405,1718434282247,-682.15,0.00022465,3]
[329557406,1718434282258,-500.0,0.00022465,3]
[329557407,1718434282268,-720.52,0.00022465,3]
[329557408,1718434282282,-500.0,0.00022465,3]
[329557409,1718434282293,-635.74,0.00022465,3]
[329557410,1718434282303,-640.48,0.00022465,3]
[329557411,1718434282316,-542.03147776,0.00022465,3]
[329557412,1718434282327,-500.0,0.00022465,3]
[329557413,1718434282337,-500.0,0.00022465,3]
[329557414,1718434282350,-500.0,0.00022465,3]
[329557415,1718434282366,-500.0,0.00022465,3]
[329557416,1718434282377,-500.0,0.00022465,3]
[329557417,1718434282389,-500.0,0.00022465,3]
[329557418,1718434282401,-500.0,0.00022465,3]
[329557419,1718434282411,-500.0,0.00022465,3]
[329557420,1718434282425,-500.0,0.00022465,3]
[329557421,1718434282606,-500.0,0.00022465,3]
[329557422,1718434282723,-500.0,0.00022465,3]
[329557423,1718434282756,-500.0,0.00022465,3]
[329557424,1718434282775,-500.0,0.00022465,3]
[329557425,1718434282809,-500.0,0.00022465,3]
[329557426,1718434282820,-500.0,0.00022465,3]
[329557427,1718434282844,-500.0,0.00022465,3]
[329557428,1718434282857,-500.0,0.00022465,3]
[329557429,1718434282867,-500.0,0.00022465,3]
[329557430,1718434282879,-500.0,0.00022465,3]
[329557431,1718434282889,-533.03251844,0.00022465,3]
[329557432,1718434282901,-516.10665429,0.00022465,3]
[329557433,1718434282911,-500.0,0.00022465,3]
[329557434,1718434282921,-504.95,0.00022465,3]
[329557435,1718434282945,-500.0,0.00022465,3]
[329557436,1718434282970,-500.0,0.00022465,3]
[329557437,1718434283002,-565.82,0.00022465,3]
[329557438,1718434283012,-500.0,0.00022465,3]
[329557439,1718434283026,-500.0,0.00022465,3]
[329557440,1718434283047,-500.0,0.00022465,3]
[329557441,1718434283074,-921.69,0.00022465,3]
[329557442,1718434283085,-500.0,0.00022465,3]
[329557443,1718434283096,-511.05145751,0.00022465,3]
[329557444,1718434283116,-500.0,0.00022465,3]
[329557445,1718434283129,-500.0,0.00022465,3]
[329557446,1718434283143,-500.0,0.00022465,3]
[329557447,1718434283159,-523.63,0.00022465,3]
[329557448,1718434283169,-500.0,0.00022465,3]
[329557449,1718434283198,-500.0,0.00022465,3]
[329557450,1718434283208,-934.42,0.00022465,3]
[329557451,1718434283228,-279.35046278,0.00022465,3]
[329557452,1718434283251,-500.0,0.00022465,3]
[329557453,1718434283266,-500.0,0.00022465,3]
[329557454,1718434283278,-500.0,0.00022465,3]
[329557455,1718434283298,-500.0,0.00022465,3]
[329557456,1718434283312,-500.0,0.00022465,3]
[329557457,1718434283323,-500.0,0.00022465,3]
[329557458,1718434283348,-1817.96,0.00022465,3]
[329557459,1718434283360,-500.0,0.00022465,3]
[329557460,1718434283378,-500.0,0.00022465,3]
[329557461,1718434283395,-500.0,0.00022465,3]
[329557462,1718434283417,-617.45,0.00022465,3]
[329557463,1718434283437,-802.12,0.00022465,3]
[329557464,1718434283453,-500.0,0.00022465,3]
[329557465,1718434283509,-500.0,0.00022465,3]
[329557466,1718434283527,-500.0,0.00022465,3]
[329557467,1718434283540,-500.0,0.00022465,3]
[329557468,1718434283590,-500.0,0.00022465,3]
[329557469,1718434283610,-500.0,0.00022465,3]
[329557470,1718434283622,-500.0,0.00022465,3]
[329557471,1718434283632,-577.17,0.00022465,3]
[329557472,1718434283644,-592.43,0.00022465,3]
[329557473,1718434283662,-535.22323246,0.00022465,3]
[329557474,1718434283675,-500.0,0.00022465,3]
[329557475,1718434283710,-500.0,0.00022465,3]
[329557476,1718434283721,-500.0,0.00022465,3]
[329557477,1718434283739,-500.0,0.00022465,3]
[329557478,1718434283776,-511.32850086,0.00022465,3]
[329557479,1718434283786,-500.0,0.00022465,3]
[329557480,1718434283797,-500.0,0.00022465,3]
[329557481,1718434283824,-500.0,0.00022465,3]
[329557482,1718434283855,-582.69,0.00022465,3]
[329557483,1718434283878,-500.0,0.00022465,3]
[329557484,1718434283891,-568.03609372,0.00022465,3]
[329557485,1718434283909,-500.0,0.00022465,3]
[329557486,1718434283931,-500.0,0.00022465,3]
[329557487,1718434283945,-501.05,0.00022465,3]
[329557488,1718434284008,-500.0,0.00022465,3]
[329557489,1718434284021,-500.0,0.00022465,3]
[329557490,1718434284032,-500.0,0.00022465,3]
[329557491,1718434284049,-500.0,0.00022465,3]
[329557492,1718434284060,-833.88,0.00022465,3]
[329557493,1718434284075,-500.0,0.00022465,3]
[329557494,1718434284087,-500.62,0.00022465,3]
[329557495,1718434284098,-500.0,0.00022465,3]
[329557496,1718434284109,-500.0,0.00022465,3]
[329557497,1718434284120,-500.0,0.00022465,3]
[329557498,1718434284144,-500.0,0.00022465,3]
[329557499,1718434284160,-500.0,0.00022465,3]
[329557500,1718434284201,-500.0,0.00022465,3]
[329557501,1718434284214,-500.0,0.00022465,3]
[329557502,1718434284226,-500.0,0.00022465,3]
[329557503,1718434284264,-500.0,0.00022465,3]
[329557504,1718434284289,-922.56,0.00022465,3]
[329557505,1718434284309,-500.0,0.00022465,3]
[329557506,1718434284333,-574.08,0.00022465,3]
[329557507,1718434284353,-1033.0,0.00022465,3]
[329557508,1718434284366,-500.0,0.00022465,3]
[329557509,1718434284376,-500.0,0.00022465,3]
[329557510,1718434284399,-500.0,0.00022465,3]
[329557511,1718434284412,-500.0,0.00022465,3]
[329557512,1718434284423,-500.0,0.00022465,3]
[329557513,1718434284460,-500.0,0.00022465,3]
[329557514,1718434284488,-500.0,0.00022465,3]
[329557515,1718434284499,-500.0,0.00022465,3]
[329557516,1718434284510,-500.0,0.00022465,3]
[329557517,1718434284564,-500.0,0.00022465,3]
[329557518,1718434284579,-500.0,0.00022465,3]
[329557519,1718434284591,-500.0,0.00022465,3]
[329557520,1718434284612,-1181.56,0.00022465,3]
[329557521,1718434284626,-500.0,0.00022465,3]
[329557522,1718434284637,-500.0,0.00022465,3]
[329557523,1718434284661,-500.0,0.00022465,3]
[329557524,1718434284692,-500.0,0.00022465,3]
[329557525,1718434284720,-500.0,0.00022465,3]
[329557526,1718434284744,-500.0,0.00022465,3]
[329557527,1718434284759,-500.0,0.00022465,3]
[329557528,1718434284820,-500.0,0.00022465,3]
[329557529,1718434284832,-500.0,0.00022465,3]
[329557530,1718434284864,-668.1,0.00022465,3]
[329557531,1718434284921,-846.34,0.00022465,3]
[329557532,1718434284934,-500.0,0.00022465,3]
[329557533,1718434284953,-500.0,0.00022465,3]
[329557534,1718434284967,-513.00424372,0.00022465,3]
[329557535,1718434284979,-500.0,0.00022465,3]
[329557536,1718434285016,-500.0,0.00022465,3]
[329557537,1718434285041,-500.0,0.00022465,3]
[329557538,1718434285068,-541.1,0.00022465,3]
[329557539,1718434285092,-500.0,0.00022465,3]
[329557540,1718434285103,-500.0,0.00022465,3]
[329557541,1718434285117,-785.78,0.00022465,3]
[329557542,1718434285143,-500.0,0.00022465,3]
[329557543,1718434285154,-500.0,0.00022465,3]
[329557544,1718434285167,-524.28,0.00022465,3]
[329557545,1718434285178,-500.0,0.00022465,3]
[329557546,1718434285198,-500.0,0.00022465,3]
[329557547,1718434285225,-500.0,0.00022465,3]
[329557548,1718434285237,-500.0,0.00022465,3]
[329557549,1718434285250,-500.0,0.00022465,3]
[329557550,1718434285281,-500.0,0.00022465,3]
[329557551,1718434285312,-500.0,0.00022465,3]
[329557552,1718434285332,-500.0,0.00022465,3]
[329557553,1718434285344,-507.39889423,0.00022465,3]
[329557554,1718434285355,-500.0,0.00022465,3]
[329557555,1718434285373,-665.89,0.00022465,3]
[329557556,1718434285407,-1474.15,0.00022465,3]
[329557557,1718434285419,-500.0,0.00022465,3]
[329557558,1718434285456,-500.0,0.00022465,3]
[329557559,1718434285469,-500.0,0.00022465,3]
[329557560,1718434285494,-500.0,0.00022465,3]
[329557561,1718434285512,-500.0,0.00022465,3]
[329557562,1718434285530,-804.1,0.00022465,3]
[329557563,1718434285544,-948.46,0.00022465,3]
[329557564,1718434285563,-500.0,0.00022465,3]
[329557565,1718434285575,-1320.72,0.00022465,3]
[329557566,1718434285586,-500.0,0.00022465,3]
[329557567,1718434285598,-500.0,0.00022465,3]
[329557568,1718434285609,-500.0,0.00022465,3]
[329557569,1718434285620,-500.0,0.00022465,3]
[329557570,1718434285631,-1699.79,0.00022465,3]
[329557571,1718434285642,-500.0,0.00022465,3]
[329557572,1718434285654,-500.0,0.00022465,3]
[329557573,1718434285666,-1315.52,0.00022465,3]
[329557574,1718434285680,-500.0,0.00022465,3]
[329557575,1718434285697,-789.34,0.00022465,3]
[329557576,1718434285709,-500.0,0.00022465,3]
[329557577,1718434285727,-563.75842644,0.00022465,3]
[329557578,1718434285755,-925.97,0.00022465,3]
[329557579,1718434285771,-808.95,0.00022465,3]
[329557580,1718434285797,-500.0,0.00022465,3]
[329557581,1718434285829,-546.38082539,0.00022465,3]
[329557582,1718434285872,-544.14,0.00022465,3]
[329557583,1718434285884,-1065.98,0.00022465,3]
[329557584,1718434285900,-500.0,0.00022465,3]
[329557585,1718434285925,-673.51,0.00022465,3]
[329557586,1718434285951,-911.12,0.00022465,3]
[329557587,1718434285971,-500.0,0.00022465,3]
[329557588,1718434285982,-500.0,0.00022465,3]
[329557589,1718434285995,-505.47,0.00022465,3]
[329557590,1718434286007,-500.0,0.00022465,3]
[329557591,1718434286045,-577.19375274,0.00022465,3]
[329557592,1718434286072,-500.0,0.00022465,3]
[329557593,1718434286096,-500.0,0.00022465,3]
[329557594,1718434286110,-500.0,0.00022465,3]
[329557595,1718434286125,-500.0,0.00022465,3]
[329557596,1718434286140,-1115.55,0.00022465,3]
[329557597,1718434286154,-500.0,0.00022465,3]
[329557598,1718434286166,-500.0,0.00022465,3]
[329557599,1718434286177,-580.06,0.00022465,3]
[329557600,1718434286190,-500.0,0.00022465,3]
[329557601,1718434286206,-500.0,0.00022465,3]
[329557602,1718434286224,-500.0,0.00022465,3]
[329557603,1718434286243,-500.0,0.00022465,3]
[329557604,1718434286253,-856.34,0.00022465,3]
[329557605,1718434286263,-544.72,0.00022465,3]
[329557606,1718434286276,-500.0,0.00022465,3]
[329557607,1718434286301,-500.0,0.00022465,3]
[329557608,1718434286316,-500.0,0.00022465,3]
[329557609,1718434286332,-500.0,0.00022465,3]
[329557610,1718434286346,-500.0,0.00022465,3]
[329557611,1718434286358,-1134.31,0.00022465,3]
[329557612,1718434286405,-500.0,0.00022465,3]
[329557613,1718434286423,-500.0,0.00022465,3]
[329557614,1718434286451,-500.0,0.00022465,3]